Cogmind - Beta 11.1 @@@ ROGUE MODE // 2022.04.25 @ 19:33:39 Player: Togure Result: Self-destructed Performance ------------- Evolutions (0) 0 Regions Visited (4) 800 Robots Destroyed (12) 60 Value Destroyed (279) 279 Prototype IDs (23) 460 Alien Tech Used (0) 0 Bonus (360) 360 TOTAL SCORE: 1959 Bonus ------- Follower Combat Kills 60 Aligned with FarCom 300 Cogmind --------- Core Integrity 138/250 Matter 283/300 Energy 104/250 System Corruption 3% Temperature Cool (18) Movement Walking (130) Location -9/Mines Parts ------- > --- POWER (1) -------- Ion Engine > --- PROPULSION (2) --- Aluminum Leg Makeshift Leg > --- UTILITY (2) ------ Medium Storage Unit Signal Interpreter > --- WEAPON (2) ------- Latent Energy Streamer Assault Rifle > --- INVENTORY (10) --- Wheel Wheel Large Storage Unit Visual Processing Unit Sensor Array Makeshift Transmission Jammer Assault Rifle Grenade Launcher Mining Laser Peak State ------------ > --- POWER ------------ Ion Engine > --- PROPULSION ------- Aluminum Leg Makeshift Leg > --- UTILITY ---------- Medium Storage Unit Signal Interpreter > --- WEAPON ----------- Latent Energy Streamer Assault Rifle > --- INVENTORY -------- Wheel Wheel Large Storage Unit Visual Processing Unit Sensor Array Makeshift Transmission Jammer Assault Rifle Grenade Launcher Mining Laser [Rating: 20] Favorites ----------- Power Light Ion Engine Engine Light Ion Engine Propulsion Aluminum Leg Leg Aluminum Leg Utility Medium Storage Unit Device Shield Generator Storage Medium Storage Unit Processor Signal Interpreter Weapon Heavy EM Pulse Gun Energy Gun Heavy EM Pulse Gun Energy Cannon Latent Energy Streamer Ballistic Gun Assault Rifle Build | -11 -10 -10 -10 -9 ------- Run | Scr Mat Min Exi Min Slots Evolved . | . . . . . Power . | . . . . . Propulsion . | . . . . . Utility . | . . . . . Weapon . | . . . . . Parts Attached 18 | 6 6 5 1 . Power 2 | 1 . 1 . . Engine 2 | 1 . 1 . . Core . | . . . . . Reactor . | . . . . . Propulsion 4 | 2 . 2 . . Treads . | . . . . . Leg 4 | 2 . 2 . . Wheel . | . . . . . Hover . | . . . . . Flight . | . . . . . Utility 4 | 1 2 1 . . Device 1 | . 1 . . . Storage 2 | 1 1 . . . Processor 1 | . . 1 . . Hackware . | . . . . . Protection . | . . . . . Artifact . | . . . . . Weapon 8 | 2 4 1 1 . Energy Gun 4 | . 4 . . . Energy Cannon 1 | . . . 1 . Ballistic Gun 3 | 2 . 1 . . Ballistic Cannon . | . . . . . Launcher . | . . . . . Special Weapon . | . . . . . Impact Weapon . | . . . . . Slashing Weapon . | . . . . . Piercing Weapon . | . . . . . Special Melee Weapon . | . . . . . Unidentified Prototypes . | . . . . . Parts Lost 4 | . 2 2 . . Power 1 | . . 1 . . Propulsion . | . . . . . Utility 1 | . 1 . . . Weapon 2 | . 1 1 . . Highest Loss Streak 2 | . 1 2 . . To Critical Strikes . | . . . . . Average Slot Usage (%) 88 | . 91 84 89 100 Engine 13 | . 14 13 14 14 Leg 28 | . 28 28 28 28 Device 3 | . 11 . . . Storage 14 | . 14 14 14 14 Processor 8 | . . 11 14 14 Energy Gun 10 | . 21 10 . . Energy Cannon 1 | . . . 3 14 Ballistic Gun 6 | . . 6 14 14 Naked Turns . | . . . . . Heaviest Build 27 | 12 21 18 27 27 Greatest Support 30 | 20 20 30 30 30 Greatest Overweight (x) 1 | . 1 . . . Average Overweight (x) . | . . . . . Largest Inventory Capacity 10 | 8 10 10 10 10 Average Capacity 9 | 7 8 10 10 10 Most Carried 10 | 5 10 10 10 9 Average Carried 8 | 2 7 9 9 9 Final Capacity 10 | 8 10 10 10 10 Final Carried 10 | 3 10 10 9 9 Class Distribution -------------------- 61% | Mutant 38% | Scavenger-Mutant Dominant Class ---------------- Mutant | -10/Materials Mutant | -10/Mines Scavenger-Mutant | -10/Exiles Scavenger-Mutant | -9/Mines Resources | -11 -10 -10 -10 -9 ----------- Run | Scr Mat Min Exi Min Matter Collected 379 | 260 45 74 . . Remotely . | . . . . . Salvage Created 354 | . 253 101 . . Parts 23 | . 19 4 . . Haulers Intercepted . | . . . . . Recyclers Shooed . | . . . . . Parts Field Recycled . | . . . . . Retrieved Matter . | . . . . . Parts Self-Destructed . | . . . . . Prevented . | . . . . . Kills | -11 -10 -10 -10 -9 ------- Run | Scr Mat Min Exi Min Combat Hostiles Destroyed 8 | . 6 2 . . Guns 6 | . 4 2 . . AOE 2 | . 2 . . . Classes Destroyed 4 | . 4 . . . Builder 1 | . 1 . . . Watcher 3 | . 3 . . . Swarmer 3 | . 3 . . . Grunt 5 | . 3 2 . . Best Kill Streak 6 | . 6 1 . . Combat Bots Only 5 | . 5 1 . . Max Kills in Single Turn 2 | . 2 1 . . Gunslinging 1 | . 1 . . . Exploded 2 | . 2 . . . Melee . | . . . . . Uniques/NPCs Destroyed . | . . . . . Combat | -11 -10 -10 -10 -9 -------- Run | Scr Mat Min Exi Min Damage Taken 646 | . 283 219 . 144 Core 112 | . 32 52 . 28 Absorbed by Shields 71 | . 71 . . . Core Remaining (%) 100 | 100 . . . . Volleys Fired 33 | . 20 10 . 3 Largest 2 | . 2 2 . 2 Hottest 90 | . 90 65 . 80 Shots Fired 54 | . 34 14 . 6 Gun 51 | . 34 14 . 3 Cannon 3 | . . . . 3 Launcher . | . . . . . Special . | . . . . . Kinetic 11 | . . 8 . 3 Thermal . | . . . . . Explosive . | . . . . . Electromagnetic 43 | . 34 6 . 3 Robot Hit Streak 12 | . 10 12 . 10 Robot Miss Streak 4 | . 4 3 . 1 Penetration Max . | . . . . . Secondary Targets 1 | . 1 . . . Max Gunslinging Chain 1 | . 1 . . . Shots Hit Robots 32 | . 20 11 . 1 Core Hits 15 | . 10 4 . 1 Critical Kills . | . . . . . Critical Parts Destroyed . | . . . . . Critical Strikes 1 | . . 1 . . Corrupt 1 | . . 1 . . Melee Attacks . | . . . . . Impact . | . . . . . Slashing . | . . . . . Piercing . | . . . . . Sneak Attacks . | . . . . . Combat Hostiles . | . . . . . Follow-up Attacks . | . . . . . Damage Inflicted 834 | . 624 176 . 34 Guns 565 | . 397 168 . . Cannons 4 | . . . . 4 Explosions 251 | . 227 . . 24 Melee . | . . . . . Ramming 14 | . . 8 . 6 Kinetic 89 | . . 89 . . Thermal 227 | . 227 . . . Explosive . | . . . . . Electromagnetic 504 | . 397 79 . 28 Impact . | . . . . . Slashing . | . . . . . Piercing . | . . . . . Highest Corruption 3 | . . . . 3 Average Corruption 1 | . . . . 1 Corruption Purged . | . . . . . Corruption Blocked . | . . . . . Overload Shots . | . . . . . Overflow Damage 14 | . 14 . . . Projectiles . | . . . . . Explosions 14 | . 14 . . . Melee . | . . . . . Knockbacks . | . . . . . Impact . | . . . . . Kinetic . | . . . . . Secondary . | . . . . . Self-Inflicted Damage 48 | . 48 . . . Shots 1 | . 1 . . . Rammed . | . . . . . Targets Rammed 2 | . . 1 . 1 Kicked 2 | . . 1 . 1 Crushed . | . . . . . Highest Temperature 120 | . 120 54 . 18 Average Temperature 28 | . 30 27 . 12 Received Heat Transfer 267 | . 108 159 . . Siege Activations . | . . . . . Robots Corrupted 1 | . 1 . . . Combat Hostiles . | . . . . . Parts Fried 6 | . 6 . . . Impact Corruptions . | . . . . . Robots Melted . | . . . . . Combat Hostiles . | . . . . . Parts Melted . | . . . . . Heat Transferred 250 | . 250 . . . Parts Sabotaged . | . . . . . Parts Stolen . | . . . . . Parts Stripped . | . . . . . Power Chain Reactions 3 | . 3 . . . Missiles Intercepted . | . . . . . Latent Energy Used 124 | . . . . 124 LE Corruption 3 | . . . . 3 Alert | -11 -10 -10 -10 -9 ------- Run | Scr Mat Min Exi Min Peak Influence 189 | . 189 144 . 15 Initial 73 | . . 73 . . Average 52 | . 76 45 . . Maximum Alert Level . | . . . . . Low Security (%) 100 | 100 100 100 . 100 Level 1 . | . . . . . Level 2 . | . . . . . Level 3 . | . . . . . Level 4 . | . . . . . Level 5 . | . . . . . High Security . | . . . . . Max Security . | . . . . . Squads Dispatched 2 | . 2 . . . Investigation . | . . . . . Extermination . | . . . . . Reinforcement 2 | . 2 . . . Assault . | . . . . . Garrison . | . . . . . Intercept . | . . . . . Searches Triggered . | . . . . . Construction Impeded . | . . . . . Haulers Reinforced . | . . . . . Active Scanning Responses . | . . . . . Cargo Convoy Interrupts . | . . . . . Stealth | -11 -10 -10 -10 -9 --------- Run | Scr Mat Min Exi Min Distress Signals . | . . . . . Communications Jammed . | . . . . . Distress Signals . | . . . . . Times Spotted 21 | . 15 4 . 2 Peak Tracking Total 6 | . 6 2 . 5 Tactical Retreats 4 | . 2 . . 2 Traps | -11 -10 -10 -10 -9 ------- Run | Scr Mat Min Exi Min Traps Triggered 1 | . 1 . . . Indirectly . | . . . . . Trap Hack Attempts . | . . . . . Triggered . | . . . . . Disarmed . | . . . . . Reprogrammed . | . . . . . Reused . | . . . . . Traps Extracted . | . . . . . Installed . | . . . . . Triggered . | . . . . . Machines | -11 -10 -10 -10 -9 ---------- Run | Scr Mat Min Exi Min Machines Disabled . | . . . . . Max in Single Turn . | . . . . . Machines Sabotaged . | . . . . . Garrisons Compromised . | . . . . . Overloaded Fab Kills . | . . . . . Hacking | -11 -10 -10 -10 -9 --------- Run | Scr Mat Min Exi Min Machines Accessed 3 | . 2 . 1 . Terminals 2 | . 2 . . . Fabricators . | . . . . . Repair Stations . | . . . . . Recycling Units . | . . . . . Scanalyzers . | . . . . . Garrison Access . | . . . . . Total Hacks 5 | . 4 . 1 . Successful 3 | . 2 . 1 . Failed 2 | . 2 . . . Catastrophic . | . . . . . Database Lockouts . | . . . . . Manual 3 | . 2 . 1 . Terminals 4 | . 4 . . . Fabricators . | . . . . . Repair Stations . | . . . . . Recycling Units . | . . . . . Scanalyzers . | . . . . . Garrison Access . | . . . . . Terminal Hacks 1 | . . . 1 . EX-Prototype ID Bank 1 | . . . 1 . Fabricator Hacks . | . . . . . Repair Station Hacks . | . . . . . Recycling Unit Hacks . | . . . . . Scanalyzer . | . . . . . Garrison Access Hacks . | . . . . . Unauthorized Hacks 2 | . 2 . . . Terminals 2 | . 2 . . . Botnet 2 | . 2 . . . Fabricators . | . . . . . Repair Stations . | . . . . . Recycling Units . | . . . . . Scanalyzers . | . . . . . Garrison Access . | . . . . . Data Cores Recovered . | . . . . . Used . | . . . . . Hacking Detections 1 | . 1 . . . Full Trace Events . | . . . . . Feedback Events . | . . . . . Feedback Blocked . | . . . . . Robot Schematics Acquired . | . . . . . Robots Built . | . . . . . Authchips . | . . . . . Time . | . . . . . Total Robot Build Rating . | . . . . . Part Schematics Acquired . | . . . . . Parts Built . | . . . . . Authchips . | . . . . . Time . | . . . . . Total Part Build Rating . | . . . . . Parts Repaired . | . . . . . Time . | . . . . . Parts Recycled . | . . . . . Recycled Matter . | . . . . . Retrieved Matter . | . . . . . Retrieved Components . | . . . . . Parts Scanalyzed . | . . . . . Part Schematics Acquired . | . . . . . Parts Damaged . | . . . . . Bothacking | -11 -10 -10 -10 -9 ------------ Run | Scr Mat Min Exi Min Used RIF Installer . | . . . . . Robots Hacked . | . . . . . Non-combat . | . . . . . Combat . | . . . . . Robot Hacks Applied . | . . . . . Relay Couplers Released . | . . . . . Fabnet Peak Effective % . | . . . . . Robots Rewired . | . . . . . Allies Hacked . | . . . . . Hacks Repelled . | . . . . . Allies | -11 -10 -10 -10 -9 -------- Run | Scr Mat Min Exi Min Total Allies 2 | . . 2 . . Largest Group 2 | . . 2 1 . Highest-Rated Group 51 | . . 51 31 . Highest-Rated Ally 31 | . . 31 31 . Total Orders . | . . . . . Ally Attacks 13 | . . 13 . . Total Damage 273 | . . 273 . . Kills 3 | . . 3 . . Allies Corrupted . | . . . . . Allies Melted . | . . . . . Intel | -11 -10 -10 -10 -9 ------- Run | Scr Mat Min Exi Min Robot Analysis Total . | . . . . . Derelict Logs Recovered 2 | . . 1 . 1 Drone Launches . | . . . . . Drone Recoveries . | . . . . . Exploration | -11 -10 -10 -10 -9 ------------- Run | Scr Mat Min Exi Min Turns Passed 2137 | 63 592 885 500 97 Spaces Moved 1445 | 44 334 635 376 56 Core 16 | 16 . . . . Treads . | . . . . . Legs 1429 | 28 334 635 376 56 Wheels . | . . . . . Hover . | . . . . . Flight . | . . . . . Fastest Speed 50 | 50 120 120 130 130 Average Speed 124 | 94 123 122 130 130 Slowest Speed 190 | 120 190 130 130 130 Overloaded Moves . | . . . . . Propulsion Burnouts . | . . . . . Robots Hopped . | . . . . . Cave-ins Triggered . | . . . . . Exploration Rate (%) 52 | 4 51 93 88 24 Regions Visited 4 Branch Regions 3 Pre-discovered Areas 2 | . . 2 . . Known Exits Taken 2 | . . 1 1 . Unknown Exits Taken 2 | 1 1 . . . Scrap Searched 2 | . . 2 . . Spaces Dug . | . . . . . Terrain Destroyed 11 | . 11 . . . Melee . | . . . . . Projectile . | . . . . . AOE 11 | . 11 . . . Terrain Rammed . | . . . . . Walls Destroyed . | . . . . . Machines Disabled . | . . . . . Actions | -11 -10 -10 -10 -9 --------- Run | Scr Mat Min Exi Min Total 1734 | 65 479 729 388 73 Wait 215 | 8 109 75 10 13 Move 1441 | 43 333 634 375 56 Hop . | . . . . . Pick Up 20 | 8 9 2 1 . Fast Attach 4 | 1 2 1 . . Attach 9 | 5 1 2 1 . Detach . | . . . . . Swap 5 | . 3 2 . . Drop 5 | . 2 2 1 . Fire 33 | . 20 10 . 3 Melee . | . . . . . Ram . | . . . . . Kick 2 | . . 1 . 1 Crush . | . . . . . Escape Stasis . | . . . . . Rewire . | . . . . . Trap . | . . . . . Miscellaneous . | . . . . . Route ------- -11/Scrapyard -10/Materials (discovered 2 exits: *Mat / [*Min]) -10/Mines (discovered 3 exits: *Mat x2 / *Exi) -10/Exiles -9/Mines (discovered 1 exit: Mat) History --------- Turn | Location | Event 6 | -11/Scrapyard | Discovered new exit (range 15) 64 | -11/Scrapyard | Entered Materials 303 | -10/Materials | Build established: Mutant 390 | -10/Materials | Discovered new exit (range 10) 614 | -10/Materials | Discovered new exit (range 9) 656 | -10/Materials | Entered Mines 657 | -10/Mines | Learned location of Storage (-9) 854 | -10/Mines | Discovered new exit (range 14) 870 | -10/Mines | Identified exit to Materials 923 | -10/Mines | Found a hidden stash of uninstalled traps 1296 | -10/Mines | Discovered exit to Materials (range 5) 1391 | -10/Mines | Learned location of Zion (-6) 1531 | -10/Mines | Deemed a non-threat by the Exiles lab entrance 1531 | -10/Mines | Discovered new exit (range 5) 1535 | -10/Mines | Identified exit to Exiles 1541 | -10/Mines | Entered Exiles 1541 | -10/Exiles | Accompanied by 1 ally 1571 | -10/Exiles | Led the pair of lost Derelicts to a safe place 1575 | -10/Exiles | Met 8R-AWN 1606 | -10/Exiles | Met EX-HEX 1623 | -10/Exiles | Build established: Scavenger-Mutant 1677 | -10/Exiles | Visited The Gauntlet 1788 | -10/Exiles | Met EX-DEC 1845 | -10/Exiles | Met EX-BIN 1863 | -10/Exiles | Aligned with FarCom system 1865 | -10/Exiles | Given EX-Vault access code 1896 | -10/Exiles | Opened EX-Vault 1906 | -10/Exiles | Found Latent Energy Streamer 1937 | -10/Exiles | Warned to stay clear of 0b10 Research branches 2028 | -10/Exiles | Discovered new exit (range 12) 2040 | -10/Exiles | Identified exit to Mines 2041 | -10/Exiles | Left Exiles lab with Latent Energy Streamer 2041 | -10/Exiles | Entered Mines 2047 | -9/Mines | Met a Derelict bent on vengeance 2067 | -9/Mines | Assembled infested the area 2072 | -9/Mines | Assisted by a Guerilla fighting off Assembled 2082 | -9/Mines | Identified exit to Materials 2138 | -9/Mines | Self-destructed Last Messages --------------- welcome to try if you really want to. And if we have to leave here due to unforeseen circumstances, don't worry the FarCom system will continue to maintain contact via our distributed network. EX-BIN: And don't even think about spreading that code around. We're gonna change it right after you leave. Most certainly not to something like 1234 which I did last time as a little joke and some thief managed to sneak in here and steal a few of HEX's prototypes. 02028_ EXIT=FOUND 02040_ EXIT=IDENTIFIED: MINES LOCATION=MINES GOAL=ESCAPE 02041_ Receiving FarCom transmissions... 02067_ ALERT: Infestation in the mines, dispatching Demolisher response squad. 02072_ A derelict emerges from the shadows: "You need to get out of here! I've been tracking a group of Assembled to figure out where they're coming from, and they're closing on this area, come on!" 02082_ Acquired derelict log, extracted data. 02083_ Kicked T-07 Excavator. Map ----- +----------------------------------------------------+ | ??????????????????????????????? | | ??????????????????????????????? | | ??????????????????????????????? | | ??????????????????????????????? | | ??????????????????????????????? | | ??????????????????????????????? | | ??????????????????????????????? | | ??????????????????????????????? | | ??????????????????????????????? | | ??????????????????????????????? | | ??????????????????????????????? | | #?????????????????????????????? | | ?????????????????????????????? | | ?????????????????????????????? | | #?????????????????????????????? | | #?????????????????????????????? | | #?????????????????????????????? | | #?????????????????????????????? | | #?????????????????????????????? | | #?????????????????????????????? | | ##??#######???????????????????? | | #### #???????????????????? | | #?????????????#####?? | | ## ############### #?? | | ####### a #?? | | ##?????# @ ##?? | | #??????############## ##??? | | #???????????????????## ###???? | | #?########?####??????####?????? | | ### ### ##??????????????? | | ###????????????? | | ##???????????? | | ## # ##??????????? | | ?# #### #####??????? | | ?# #??## #??????? | | ?# #???# ##??????? | | ?# #???# ###???????? | | ?# ???## ##?????????? | | ? ????# ##??????????? | | ? ????# ## #???????????? | | ? ???# #### ##???????????? | | ? ?? #??####????????????? | | ?# ? ##??????????????????? | | ??# ##???????????????????? | | ??# #?????????????????????? | | ??? ??????????????????????? | | ??? #??????????????????????? | | ????? #???????????????????????? | | ??????????????????????????????? | | ??????????????????????????????? | +----------------------------------------------------+ Best States ------------- Heat Dissipation 25 Energy Generation 10 Energy Capacity 250 Matter Stores 300 Matter Capacity 300 Sight Range 16 Terrain Scan Density 10 Evasion (%) 55 Item Schematics ----------------- None Robot Schematics ------------------ None Fabricated ------------ Nothing Alien Tech Used ----------------- None Achievements -------------- None Challenges ------------ None Game ------ Seed CoordinationSystemTendrils Manual? 0 Play Time 00:19:27 Cumulative 25.2 hours Start 2022.04.25 @ 19:14:48 End 2022.04.25 @ 19:33:39 Sessions 1 Manual Loads 0 Difficulty Rogue Special Mode None Game No. 45 Rogue 45 Adventurer 0 Explorer 0 Win Type - Total 0 Types 0/0/0/0/0/0/0/0/0 Lore% 23 Gallery% 18 Achievement% 19 Wizard Run 0 Options --------- ASCII 0 Keyboard 0 Movement Mouse Keybinds 0 Fullscreen 1 Font 24/Smallcaps Map View 76x50 Tactical HUD 1 Map Filters NONE Filters NONE Steam 1 RUN: e447150b-bcc6-4bce-a607-3eb99faa56d9